bitfinex/quotes_BTCUSD_20240818
["timestamp","ask_amount","ask_price","bid_price","bid_amount"]
[1723983316884,1.53889127,60105.0,60104.0,0.0009075]
[1723983317104,1.54089127,60105.0,60104.0,0.0009075]
[1723983317304,1.46595936,60105.0,60104.0,0.0009075]
[1723983317682,1.46295936,60105.0,60104.0,0.0009075]
[1723983317859,1.47595936,60105.0,60104.0,0.0009075]
[1723983318063,1.48581839,60105.0,60104.0,0.0009075]
[1723983318471,1.48981839,60105.0,60104.0,0.0009075]
[1723983318843,1.49181839,60105.0,60104.0,0.0009075]
[1723983319047,1.31826385,60105.0,60104.0,0.0009075]
[1723983319268,1.31626385,60105.0,60104.0,0.0009075]
[1723983319475,1.33026385,60105.0,60104.0,0.0009075]
[1723983319936,1.37819576,60105.0,60104.0,0.0009075]
[1723983320144,1.39019576,60105.0,60104.0,0.0009075]
[1723983320360,1.32926385,60105.0,60104.0,0.0009075]
[1723983321115,1.32826385,60105.0,60104.0,0.0009075]
[1723983321316,1.31426385,60105.0,60104.0,0.0009075]
[1723983321521,1.30026385,60105.0,60104.0,0.0009075]
[1723983321721,1.08133885,60105.0,60104.0,0.0009075]
[1723983321928,1.09533885,60105.0,60104.0,0.0009075]
[1723983322188,0.51962982,60105.0,60104.0,0.0009075]
[1723983322683,0.50562982,60105.0,60104.0,0.0009075]
[1723983322816,0.42732982,60105.0,60104.0,0.0009075]
[1723983323022,0.44132982,60105.0,60104.0,0.00870685]
[1723983323255,0.42732982,60105.0,60104.0,0.00870685]
[1723983323453,0.41332982,60105.0,60104.0,0.00870685]
[1723983323669,0.42732982,60105.0,60104.0,0.00870685]
[1723983324215,0.41332982,60105.0,60104.0,0.00870685]
[1723983324639,0.42332982,60105.0,60104.0,0.00870685]
[1723983324844,0.43232982,60105.0,60104.0,0.00870685]
[1723983328631,0.43232982,60105.0,60104.0,0.0009075]
[1723983329036,0.43232982,60105.0,60104.0,0.00870685]
[1723983329244,0.43232982,60105.0,60104.0,0.0009075]
[1723983331033,0.66525482,60105.0,60104.0,0.0009075]
[1723983332423,0.97777982,60105.0,60104.0,0.0009075]
[1723983332610,0.74485482,60105.0,60104.0,0.0009075]
[1723983332811,0.97777982,60105.0,60104.0,0.0009075]
[1723983332993,1.07777982,60105.0,60104.0,0.0009075]
[1723983333852,1.06777982,60105.0,60104.0,0.0009075]
[1723983334206,1.08177982,60105.0,60104.0,0.0009075]
[1723983334648,1.09169456,60105.0,60104.0,0.0009075]
[1723983335025,1.08269456,60105.0,60104.0,0.0009075]
[1723983335207,1.06869456,60105.0,60104.0,0.0009075]
[1723983335421,1.08269456,60105.0,60104.0,0.0009075]
[1723983335970,1.06869456,60105.0,60104.0,0.0009075]
[1723983336184,1.08169456,60105.0,60104.0,0.0009075]
[1723983336769,1.09569456,60105.0,60104.0,0.0009075]
[1723983337867,1.23155522,60105.0,60104.0,0.0009075]
[1723983337974,1.09569456,60105.0,60104.0,0.0009075]
[1723983338178,1.31461956,60105.0,60104.0,0.0009075]
[1723983338386,1.30261956,60105.0,60104.0,0.0009075]
[1723983338590,1.31561956,60105.0,60104.0,0.0009075]
[1723983338814,1.32861956,60105.0,60104.0,0.0009075]
[1723983339013,1.45946047,60105.0,60104.0,0.0009075]
[1723983339505,1.47346047,60105.0,60104.0,0.0009075]
[1723983339640,1.47446047,60105.0,60104.0,0.0009075]
[1723983339838,1.44646047,60105.0,60104.0,0.0009075]
[1723983340239,1.47446047,60105.0,60104.0,0.0009075]
[1723983340741,1.46146047,60105.0,60104.0,0.0009075]
[1723983341173,1.47546047,60105.0,60104.0,0.0009075]
[1723983341575,1.46146047,60105.0,60104.0,0.0009075]
[1723983341779,1.47546047,60105.0,60104.0,0.0009075]
[1723983341973,1.47446047,60105.0,60104.0,0.0009075]
[1723983342188,1.46046047,60105.0,60104.0,0.0009075]
[1723983342427,1.33061956,60105.0,60104.0,0.0009075]
[1723983342729,1.09669456,60105.0,60104.0,0.0009075]
[1723983347146,1.32961956,60105.0,60104.0,0.0009075]
[1723983347352,1.09669456,60105.0,60104.0,0.0009075]
[1723983347703,1.32961956,60105.0,60104.0,0.0009075]
[1723983348104,1.25120502,60105.0,60104.0,0.0009075]
[1723983348308,1.48513002,60105.0,60104.0,0.0009075]
[1723983348512,1.48413002,60105.0,60104.0,0.0009075]
[1723983349513,1.48513002,60105.0,60104.0,0.0009075]
[1723983350131,1.48413002,60105.0,60104.0,0.0009075]
[1723983350336,1.48813002,60105.0,60104.0,0.0009075]
[1723983350539,1.56194682,60105.0,60104.0,0.0009075]
[1723983350753,1.55994682,60105.0,60104.0,0.0009075]
[1723983351007,1.79587182,60105.0,60104.0,0.0009075]
[1723983351211,1.84474969,60105.0,60104.0,0.0009075]
[1723983351614,1.71805502,60105.0,60104.0,0.0009075]
[1723983352932,1.72105502,60105.0,60104.0,0.0009075]
[1723983353136,1.72005502,60105.0,60104.0,0.0009075]
[1723983353363,1.53954456,60105.0,60104.0,0.0009075]
[1723983353520,1.55354456,60105.0,60104.0,0.0009075]
[1723983353716,1.56754456,60105.0,60104.0,0.0009075]
[1723983354142,1.55354456,60105.0,60104.0,0.0009075]
[1723983354379,1.67618441,60105.0,60104.0,0.0009075]
[1723983354577,1.69018441,60105.0,60104.0,0.0009075]
[1723983354831,1.56554456,60105.0,60104.0,0.0009075]
[1723983355125,1.53954456,60105.0,60104.0,0.0009075]
[1723983355323,1.55354456,60105.0,60104.0,0.0009075]
[1723983355497,1.56754456,60105.0,60104.0,0.0009075]
[1723983356298,1.55354456,60105.0,60104.0,0.0009075]
[1723983356769,1.56754456,60105.0,60104.0,0.0009075]
[1723983356882,1.55354456,60105.0,60104.0,0.0009075]
[1723983357283,1.56754456,60105.0,60104.0,0.0009075]
[1723983358101,1.65326666,60105.0,60104.0,0.0009075]
[1723983358351,1.67818441,60105.0,60104.0,0.0009075]
[1723983358797,1.69218441,60105.0,60104.0,0.0009075]
[1723983359416,1.86373895,60105.0,60104.0,0.0009075]
[1723983359574,1.86273895,60105.0,60104.0,0.0009075]
[1723983359778,1.56754456,60105.0,60104.0,0.0009075]
[1723983360180,1.55354456,60105.0,60104.0,0.0009075]
[1723983360577,1.55254456,60105.0,60104.0,0.0009075]
[1723983360785,1.53854456,60105.0,60104.0,0.0009075]
[1723983361012,1.53954456,60105.0,60104.0,0.0009075]
[1723983361244,1.6897139,60105.0,60104.0,5e-07]
[1723983361460,1.7047139,60105.0,60104.0,5e-07]
[1723983361643,1.7177139,60105.0,60104.0,5e-07]
[1723983361954,1.7187139,60105.0,60104.0,5e-07]
[1723983362182,1.56754456,60105.0,60104.0,5e-07]
[1723983362360,1.56554456,60105.0,60104.0,5e-07]
[1723983362734,1.56354456,60105.0,60104.0,5e-07]
[1723983363744,1.56554456,60105.0,60104.0,5e-07]
[1723983364506,1.7370991,60105.0,60104.0,5e-07]
[1723983365051,1.7360991,60105.0,60104.0,5e-07]
[1723983365256,1.7390991,60105.0,60104.0,5e-07]
[1723983365835,1.7380991,60105.0,60104.0,5e-07]
[1723983366456,1.56354456,60105.0,60104.0,5e-07]
[1723983366860,1.56554456,60105.0,60104.0,5e-07]
[1723983367696,1.56354456,60105.0,60104.0,5e-07]
[1723983367913,1.56554456,60105.0,60104.0,5e-07]
[1723983368064,1.56754456,60105.0,60104.0,5e-07]
[1723983368264,1.7390991,60105.0,60104.0,5e-07]
[1723983373785,1.56754456,60105.0,60104.0,5e-07]
[1723983373985,1.56654456,60105.0,60104.0,5e-07]
[1723983374590,1.56454456,60105.0,60104.0,5e-07]
[1723983376194,1.56354456,60105.0,60104.0,5e-07]
[1723983376387,1.56454456,60105.0,60104.0,5e-07]
[1723983376807,1.7390991,60105.0,60104.0,5e-07]
[1723983379334,1.88867036,60105.0,60104.0,5e-07]
[1723983379662,1.88882818,60105.0,60104.0,5e-07]
[1723983379875,1.7390991,60105.0,60104.0,5e-07]
[1723983380279,1.88882818,60105.0,60104.0,5e-07]
[1723983381259,1.7390991,60105.0,60104.0,5e-07]
[1723983381429,1.88886278,60105.0,60104.0,5e-07]
[1723983381635,1.7390991,60105.0,60104.0,5e-07]
[1723983381837,1.8888652,60105.0,60104.0,5e-07]
[1723983382403,1.7390991,60105.0,60104.0,5e-07]
[1723983382601,1.88888302,60105.0,60104.0,5e-07]
[1723983382802,1.40080348,60105.0,60104.0,5e-07]
[1723983383069,1.25101956,60105.0,60104.0,5e-07]
[1723983383360,1.17381956,60105.0,60104.0,5e-07]
[1723983383560,1.15981956,60105.0,60104.0,5e-07]
[1723983383765,1.17381956,60105.0,60104.0,5e-07]
[1723983383941,1.33006991,60105.0,60104.0,5e-07]
[1723983384144,1.39596991,60105.0,60104.0,5e-07]
[1723983384521,1.62889491,60105.0,60104.0,5e-07]
[1723983384727,1.54576365,60105.0,60104.0,5e-07]
[1723983385844,1.77868865,60105.0,60104.0,5e-07]
[1723983386046,1.54576365,60105.0,60104.0,5e-07]
[1723983387371,1.39596991,60105.0,60104.0,5e-07]
[1723983387778,1.62889491,60105.0,60104.0,5e-07]
[1723983388567,1.39596991,60105.0,60104.0,5e-07]
[1723983389166,1.62889491,60105.0,60104.0,5e-07]
[1723983389758,1.62789491,60105.0,60104.0,5e-07]
[1723983390554,1.39496991,60105.0,60104.0,5e-07]
[1723983390814,1.39596991,60105.0,60104.0,5e-07]
[1723983391568,1.62889491,60105.0,60104.0,5e-07]
[1723983394040,1.48664456,60105.0,60104.0,5e-07]
[1723983402743,1.48500256,60105.0,60104.0,5e-07]
[1723983402970,1.42010256,60105.0,60104.0,5e-07]
[1723983403173,1.41910256,60105.0,60104.0,5e-07]
[1723983403329,1.18617756,60105.0,60104.0,5e-07]
[1723983403530,1.35594102,60105.0,60104.0,5e-07]
[1723983404072,1.58886602,60105.0,60104.0,5e-07]
[1723983406027,1.58786602,60105.0,60104.0,5e-07]
[1723983406227,1.58886602,60105.0,60104.0,5e-07]
[1723983406556,1.58869102,60105.0,60104.0,5e-07]
[1723983407194,1.58969102,60105.0,60104.0,5e-07]
[1723983407591,1.42092756,60105.0,60104.0,5e-07]
[1723983411855,1.41992756,60105.0,60104.0,5e-07]
[1723983412087,1.11600256,60105.0,60104.0,0.1467005]
[1723983412534,1.2409678,60105.0,60104.0,0.1467005]
[1723983413432,1.20195013,60105.0,60104.0,0.1467005]
[1723983413617,1.30195013,60105.0,60104.0,0.1467005]
[1723983413953,1.20200256,60105.0,60104.0,0.1467005]
[1723983414155,1.21600256,60105.0,60104.0,0.1467005]
[1723983414375,1.31593342,60105.0,60104.0,0.1467005]
[1723983416198,1.37843342,60105.0,60104.0,5e-07]
[1723983416398,1.27750256,60105.0,60104.0,5e-07]
[1723983416980,1.27850256,60105.0,60104.0,5e-07]
[1723983417181,1.27750256,60105.0,60104.0,5e-07]
[1723983417857,1.430371,60105.0,60104.0,5e-07]
[1723983418056,1.429371,60105.0,60104.0,5e-07]
[1723983418254,1.27846097,60105.0,60104.0,5e-07]
[1723983418690,1.51138597,60105.0,60104.0,5e-07]
[1723983418864,1.59168597,60105.0,60104.0,5e-07]
[1723983419034,1.74157257,60105.0,60104.0,5e-07]
[1723983419604,1.71257257,60105.0,60104.0,5e-07]
[1723983420102,1.59068597,60105.0,60104.0,5e-07]
[1723983420246,1.57668597,60105.0,60104.0,5e-07]
[1723983420442,1.56268597,60105.0,60104.0,5e-07]
[1723983420670,1.57668597,60105.0,60104.0,5e-07]
[1723983421255,1.57468597,60105.0,60104.0,5e-07]
[1723983422105,1.58868597,60105.0,60104.0,5e-07]
[1723983422306,1.59168597,60105.0,60104.0,5e-07]
[1723983422506,1.58868597,60105.0,60104.0,5e-07]
[1723983424647,1.64702345,60105.0,60104.0,5e-07]
[1723983425408,1.81565615,60105.0,60104.0,5e-07]
[1723983425616,1.80165615,60105.0,60104.0,5e-07]
[1723983426047,1.81565615,60105.0,60104.0,5e-07]
[1723983426583,1.80165615,60105.0,60104.0,5e-07]
[1723983426837,1.81565615,60105.0,60104.0,5e-07]
[1723983427377,1.80165615,60105.0,60104.0,5e-07]
[1723983427605,1.81565615,60105.0,60104.0,5e-07]
[1723983428040,1.80165615,60105.0,60104.0,5e-07]
[1723983428400,1.76031867,60105.0,60104.0,5e-07]
[1723983429128,1.73231867,60105.0,60104.0,5e-07]
[1723983429541,1.74331867,60105.0,60104.0,5e-07]
[1723983429858,1.74631867,60105.0,60104.0,5e-07]
[1723983430065,1.74331867,60105.0,60104.0,5e-07]
[1723983430251,1.74631867,60105.0,60104.0,5e-07]
[1723983430460,1.90387321,60105.0,60104.0,5e-07]
[1723983430686,1.91787321,60105.0,60104.0,5e-07]
[1723983431190,1.90084629,60105.0,60104.0,5e-07]
[1723983431380,1.91784629,60105.0,60104.0,5e-07]
[1723983432028,1.93184629,60105.0,60104.0,5e-07]
[1723983432160,1.91784629,60105.0,60104.0,5e-07]
[1723983432361,1.90384629,60105.0,60104.0,5e-07]
[1723983432677,1.91784629,60105.0,60104.0,5e-07]
[1723983432879,1.93474171,60105.0,60104.0,5e-07]
[1723983433657,1.93184629,60105.0,60104.0,5e-07]
[1723983434766,1.91784629,60105.0,60104.0,5e-07]
[1723983434971,1.90384629,60105.0,60104.0,5e-07]
[1723983435383,1.93184629,60105.0,60104.0,5e-07]
[1723983435674,1.93181625,60105.0,60104.0,5e-07]
[1723983435976,1.74626171,60105.0,60104.0,5e-07]
[1723983436199,1.73226171,60105.0,60104.0,5e-07]
[1723983436478,1.74626171,60105.0,60104.0,5e-07]
[1723983436710,1.50038597,60105.0,60104.0,5e-07]
[1723983436968,1.20696097,60105.0,60104.0,5e-07]
[1723983437188,1.34278931,60105.0,60104.0,5e-07]
[1723983437361,1.34279242,60105.0,60104.0,5e-07]
[1723983437609,1.58971742,60105.0,60104.0,5e-07]
[1723983437817,1.42588597,60105.0,60104.0,5e-07]
[1723983437993,1.57571453,60105.0,60104.0,5e-07]
[1723983438206,1.58971475,60105.0,60104.0,5e-07]
[1723983438391,1.43988597,60105.0,60104.0,5e-07]
[1723983438602,1.45388597,60105.0,60104.0,5e-07]
[1723983439181,1.43988597,60105.0,60104.0,5e-07]
[1723983439357,1.45388597,60105.0,60104.0,5e-07]
[1723983439559,1.36979149,60105.0,60104.0,5e-07]
[1723983439833,1.36979068,60105.0,60104.0,5e-07]
[1723983439961,1.37079068,60105.0,60104.0,5e-07]
[1723983440178,1.45388597,60105.0,60104.0,5e-07]
[1723983440512,1.45288597,60105.0,60104.0,5e-07]
[1723983440936,1.45088597,60105.0,60104.0,5e-07]
[1723983441137,1.60071315,60105.0,60104.0,5e-07]
[1723983441312,1.59971315,60105.0,60104.0,5e-07]
[1723983441725,1.44988597,60105.0,60104.0,5e-07]
[1723983443017,1.21696097,60105.0,60104.0,5e-07]
[1723983443937,1.44988597,60105.0,60104.0,5e-07]
[1723983445601,1.21696097,60105.0,60104.0,5e-07]
[1723983446216,1.45088597,60105.0,60104.0,5e-07]
[1723983446344,1.44988597,60105.0,60104.0,5e-07]
[1723983446925,1.21696097,60105.0,60104.0,5e-07]
[1723983447152,1.36066097,60105.0,60104.0,5e-07]
[1723983447358,1.35966097,60105.0,60104.0,5e-07]
[1723983447488,1.59258597,60105.0,60104.0,5e-07]
[1723983447861,1.74241028,60105.0,60104.0,5e-07]
[1723983448337,1.74541028,60105.0,60104.0,5e-07]
[1723983448550,1.74441028,60105.0,60104.0,5e-07]
[1723983449503,1.547514,60099.0,60098.0,5e-07]
[1723983449746,1.87675364,60099.0,60098.0,5e-07]
[1723983449949,1.960862,60099.0,60098.0,5e-07]
[1723983451530,1.974862,60099.0,60098.0,5e-07]
[1723983451732,2.14641654,60099.0,60098.0,5e-07]
[1723983451901,2.16041654,60099.0,60098.0,5e-07]
[1723983452889,1.984862,60099.0,60098.0,5e-07]
[1723983454012,1.988862,60099.0,60098.0,5e-07]
[1723983455164,1.974862,60099.0,60098.0,5e-07]
[1723983455336,2.1106531,60099.0,60098.0,5e-07]
[1723983455513,2.1246531,60099.0,60098.0,5e-07]
[1723983456330,2.32420764,60099.0,60098.0,5e-07]
[1723983457627,2.29620764,60099.0,60098.0,5e-07]
[1723983458022,2.28220764,60099.0,60098.0,5e-07]
[1723983458284,2.29620764,60099.0,60098.0,5e-07]
[1723983458406,2.16041654,60099.0,60098.0,5e-07]
[1723983458617,2.310197,60099.0,60098.0,5e-07]
[1723983459477,2.16041654,60099.0,60098.0,5e-07]
[1723983459853,2.15641654,60099.0,60098.0,5e-07]
[1723983460828,2.15841654,60099.0,60098.0,5e-07]
[1723983461462,2.16041654,60099.0,60098.0,5e-07]
[1723983465343,2.16124154,60099.0,60098.0,5e-07]
[1723983470785,2.14724154,60099.0,60098.0,5e-07]
[1723983471245,1.909287,60099.0,60098.0,5e-07]
[1723983471787,1.895287,60099.0,60098.0,5e-07]
[1723983472006,1.909287,60099.0,60098.0,5e-07]
[1723983473181,1.908287,60099.0,60098.0,5e-07]
[1723983473381,1.909287,60099.0,60098.0,5e-07]
[1723983474059,1.98607794,60099.0,60098.0,5e-07]
[1723983480625,1.909287,60099.0,60098.0,5e-07]
[1723983484319,1.907287,60099.0,60098.0,5e-07]
[1723983485904,1.909287,60099.0,60098.0,5e-07]
[1723983490776,1.895287,60099.0,60098.0,5e-07]
[1723983491089,1.909287,60099.0,60098.0,5e-07]
[1723983491633,1.895287,60099.0,60098.0,5e-07]
[1723983491836,1.909287,60099.0,60098.0,5e-07]
[1723983492658,1.891287,60099.0,60098.0,5e-07]
[1723983492864,1.893287,60099.0,60098.0,5e-07]
[1723983493022,1.906287,60099.0,60098.0,5e-07]
[1723983493225,2.0608764,60099.0,60098.0,5e-07]
[1723983493427,1.892287,60099.0,60098.0,5e-07]
[1723983493625,2.0748764,60099.0,60098.0,5e-07]
[1723983494889,1.906287,60099.0,60098.0,5e-07]
[1723983495286,2.08084154,60099.0,60098.0,5e-07]
[1723983495491,2.15914154,60099.0,60098.0,5e-07]
[1723983499937,2.15814154,60099.0,60098.0,5e-07]
[1723983500124,1.906287,60099.0,60098.0,5e-07]
[1723983500541,1.905287,60099.0,60098.0,5e-07]
[1723983501070,1.93240574,60099.0,60098.0,5e-07]
[1723983501628,1.93340574,60099.0,60098.0,5e-07]
[1723983502476,1.93140574,60099.0,60098.0,5e-07]
[1723983504055,1.93240574,60099.0,60098.0,5e-07]
[1723983504455,1.93140574,60099.0,60098.0,5e-07]
[1723983504635,1.93240574,60099.0,60098.0,5e-07]
[1723983505138,1.93140574,60099.0,60098.0,5e-07]
[1723983505377,1.93240574,60099.0,60098.0,5e-07]
[1723983505789,1.93540574,60099.0,60098.0,5e-07]
[1723983507213,2.10696028,60099.0,60098.0,5e-07]
[1723983510522,1.73540574,60099.0,60098.0,5e-07]
[1723983511551,1.73140574,60099.0,60098.0,5e-07]
[1723983511733,1.73240574,60099.0,60098.0,5e-07]
[1723983511929,1.73140574,60099.0,60098.0,5e-07]
[1723983512499,1.79812774,60099.0,60098.0,5e-07]
[1723983512934,1.70387974,60099.0,60098.0,5e-07]
[1723983513048,1.611039,60099.0,60098.0,0.0822005]
[1723983513255,1.606114,60099.0,60098.0,0.0822005]
[1723983513460,1.592114,60099.0,60098.0,0.0822005]
[1723983513654,1.606114,60099.0,60098.0,0.0822005]
[1723983514073,0.9752731,60099.0,60098.0,0.1425005]
[1723983514277,0.41424416,60099.0,60098.0,0.1425005]
[1723983514670,0.364247,60099.0,60098.0,0.1425005]
[1723983514858,0.378247,60099.0,60098.0,0.1425005]
[1723983515340,0.364247,60099.0,60098.0,0.1425005]
[1723983516025,0.364247,60099.0,60098.0,0.14900063]
[1723983516229,0.378247,60099.0,60098.0,0.14900063]
[1723983516603,0.478247,60099.0,60098.0,0.14900063]
[1723983520482,0.028825,60099.0,60098.0,0.26547663]
[1723983520685,0.028825,60099.0,60098.0,0.17200063]
[1723983521055,0.028825,60099.0,60098.0,0.28847663]
[1723983521525,0.014825,60099.0,60098.0,0.28847663]
[1723983521959,0.016825,60099.0,60098.0,0.28847663]
[1723983522798,0.133299,60099.0,60098.0,0.14900063]
[1723983523011,0.352247,60099.0,60098.0,0.14900063]
[1723983523218,0.585195,60099.0,60098.0,0.14900063]
[1723983523426,0.586195,60099.0,60098.0,0.14900063]
[1723983524300,0.583195,60099.0,60098.0,0.14900063]
[1723983524509,0.589195,60099.0,60098.0,0.14900063]
[1723983524890,0.587195,60099.0,60098.0,0.14900063]
[1723983525203,0.583195,60099.0,60098.0,0.14900063]
[1723983525405,0.587195,60099.0,60098.0,0.14900063]
[1723983526405,0.356247,60099.0,60098.0,0.14900063]
[1723983530315,0.356247,60099.0,60098.0,0.1425005]
[1723983530861,0.356247,60099.0,60098.0,0.1489482]
[1723983531049,0.352247,60099.0,60098.0,0.1489482]
[1723983531405,0.352247,60099.0,60098.0,0.1425005]
[1723983531406,0.358247,60099.0,60098.0,0.1425005]
[1723983531829,0.35820541,60099.0,60098.0,0.1425005]
[1723983532264,0.35220541,60099.0,60098.0,0.1425005]
[1723983532467,0.35520541,60099.0,60098.0,0.1425005]
[1723983533059,0.35520541,60099.0,60098.0,0.1489482]
[1723983533977,0.58615341,60099.0,60098.0,0.1489482]
[1723983534227,0.35020541,60099.0,60098.0,0.1425005]
[1723983534404,0.35020541,60099.0,60098.0,0.1489482]
[1723983534405,0.35420541,60099.0,60098.0,0.1489482]
[1723983534743,0.36020541,60099.0,60098.0,0.1425005]
[1723983535521,0.35420541,60099.0,60098.0,0.1425005]
[1723983535754,0.35720541,60099.0,60098.0,0.1425005]
[1723983535947,0.35320541,60099.0,60098.0,0.1425005]
[1723983536362,0.35520541,60099.0,60098.0,0.1425005]
[1723983536496,0.35320541,60099.0,60098.0,0.1425005]
[1723983537301,0.35420541,60099.0,60098.0,0.1489482]
[1723983537707,0.36020541,60099.0,60098.0,0.1489482]
[1723983538130,0.36020541,60099.0,60098.0,0.1425005]
[1723983538340,0.36020541,60099.0,60098.0,0.14894748]
[1723983538696,0.36020541,60099.0,60098.0,0.1425005]
[1723983538851,0.82610141,60099.0,60098.0,5e-07]
[1723983539052,0.91710141,60099.0,60098.0,5e-07]
[1723983539278,0.97840141,60099.0,60098.0,5e-07]
[1723983539480,1.21434941,60099.0,60098.0,5e-07]
[1723983539679,1.21134941,60099.0,60098.0,5e-07]
[1723983539886,1.28894941,60099.0,60098.0,5e-07]
[1723983540086,1.29794941,60099.0,60098.0,5e-07]
[1723983540333,1.28994941,60099.0,60098.0,5e-07]
[1723983540947,1.30394941,60099.0,60098.0,5e-07]
[1723983541140,1.29294941,60099.0,60098.0,5e-07]
[1723983541474,1.28894941,60099.0,60098.0,5e-07]
[1723983541860,1.30294941,60099.0,60098.0,5e-07]
[1723983543173,1.31694941,60099.0,60098.0,5e-07]
[1723983543567,1.31794941,60099.0,60098.0,5e-07]
[1723983543702,1.31694941,60099.0,60098.0,5e-07]
[1723983544663,1.32094941,60099.0,60098.0,5e-07]
[1723983544996,1.31794941,60099.0,60098.0,5e-07]
[1723983545218,1.31894941,60099.0,60098.0,5e-07]
[1723983545417,1.31794941,60099.0,60098.0,5e-07]
[1723983545747,1.30394941,60099.0,60098.0,5e-07]
[1723983545961,1.30294941,60099.0,60098.0,5e-07]
[1723983546161,1.30494941,60099.0,60098.0,5e-07]
[1723983546482,1.29094941,60099.0,60098.0,5e-07]
[1723983546665,1.30494941,60099.0,60098.0,5e-07]
[1723983547265,1.30694941,60099.0,60098.0,5e-07]
[1723983547856,1.32094941,60099.0,60098.0,5e-07]
[1723983549452,1.55389741,60099.0,60098.0,5e-07]
[1723983549651,1.55289741,60099.0,60098.0,5e-07]
[1723983549851,1.60265832,60099.0,60098.0,5e-07]
[1723983550624,1.58965832,60099.0,60098.0,5e-07]
[1723983550828,1.55389741,60099.0,60098.0,5e-07]
[1723983551058,1.55089741,60099.0,60098.0,5e-07]
[1723983551283,1.62553877,60099.0,60098.0,5e-07]
[1723983551918,1.61153877,60099.0,60098.0,5e-07]
[1723983552128,1.59753877,60099.0,60098.0,5e-07]
[1723983552966,1.61153877,60099.0,60098.0,5e-07]
[1723983553386,1.59753877,60099.0,60098.0,5e-07]
[1723983553609,1.61153877,60099.0,60098.0,5e-07]
[1723983553815,1.60053877,60099.0,60098.0,5e-07]
[1723983554224,1.61453877,60099.0,60098.0,5e-07]
[1723983554431,1.53589741,60099.0,60098.0,5e-07]
[1723983555075,1.55389741,60099.0,60098.0,5e-07]
[1723983555280,1.62453877,60099.0,60098.0,5e-07]
[1723983555484,1.54989741,60099.0,60098.0,5e-07]
[1723983555719,1.53589741,60099.0,60098.0,5e-07]
[1723983555930,1.53789741,60099.0,60098.0,5e-07]
[1723983556143,1.55189741,60099.0,60098.0,5e-07]
[1723983556315,1.62653877,60099.0,60098.0,5e-07]
[1723983556551,1.53789741,60099.0,60098.0,5e-07]
[1723983556736,1.61259097,60099.0,60098.0,5e-07]
[1723983556942,1.62659097,60099.0,60098.0,5e-07]
[1723983557711,1.62859097,60099.0,60098.0,5e-07]
[1723983559541,1.31694941,60099.0,60098.0,5e-07]
[1723983559755,1.28894941,60099.0,60098.0,5e-07]
[1723983560139,1.31694941,60099.0,60098.0,5e-07]
[1723983560777,1.33094941,60099.0,60098.0,5e-07]
[1723983560985,1.30294941,60099.0,60098.0,5e-07]
[1723983561193,1.30494941,60099.0,60098.0,5e-07]
[1723983561404,1.31894941,60099.0,60098.0,5e-07]
[1723983561614,1.32094941,60099.0,60098.0,5e-07]
[1723983561817,1.30694941,60099.0,60098.0,5e-07]
[1723983562222,1.32094941,60099.0,60098.0,5e-07]
[1723983568194,1.31694941,60099.0,60098.0,5e-07]
[1723983569333,1.31894941,60099.0,60098.0,5e-07]
[1723983569568,1.24134941,60099.0,60098.0,5e-07]
[1723983570450,1.23934941,60099.0,60098.0,5e-07]
[1723983573168,1.24134941,60099.0,60098.0,5e-07]
[1723983573618,1.24334941,60099.0,60098.0,5e-07]
[1723983574331,1.2891539,60099.0,60098.0,5e-07]
[1723983574585,1.17704941,60099.0,60098.0,5e-07]
[1723983574806,1.17704941,60099.0,60098.0,0.1428005]
[1723983575523,1.17804941,60099.0,60098.0,0.0777005]
[1723983575782,1.17804941,60099.0,60098.0,5e-07]
[1723983578490,1.22787915,60099.0,60098.0,5e-07]
[1723983580246,1.17804941,60099.0,60098.0,5e-07]
[1723983581213,1.25279402,60099.0,60098.0,5e-07]
[1723983582127,1.27770889,60099.0,60098.0,5e-07]
[1723983583295,1.30262376,60099.0,60098.0,5e-07]
[1723983583474,1.17804941,60099.0,60098.0,5e-07]
[1723983583631,1.30289634,60099.0,60098.0,5e-07]
[1723983584213,1.17804941,60099.0,60098.0,5e-07]
[1723983585130,1.17704941,60099.0,60098.0,5e-07]
[1723983585352,0.94410141,60099.0,60098.0,0.1428005]
[1723983586030,1.0690477,60099.0,60098.0,0.1428005]
[1723983586374,1.0550477,60099.0,60098.0,0.1428005]
[1723983586581,1.0690477,60099.0,60098.0,0.1428005]
[1723983587225,1.0550477,60099.0,60098.0,0.1428005]
[1723983587370,0.94410141,60099.0,60098.0,0.1428005]
[1723983588871,0.94410141,60099.0,60098.0,0.0777005]
[1723983591504,1.04403107,60099.0,60098.0,0.0777005]
[1723983593634,1.04402374,60099.0,60098.0,0.0777005]
[1723983596837,1.04402374,60099.0,60098.0,0.1431005]
[1723983597534,1.04402374,60099.0,60098.0,0.0777005]
[1723983598171,1.04401896,60099.0,60098.0,0.0777005]
[1723983601683,0.94410141,60099.0,60098.0,0.0777005]
[1723983602627,1.04403341,60099.0,60098.0,0.0777005]
[1723983603436,0.94410141,60099.0,60098.0,0.0777005]
[1723983605838,1.00660141,60099.0,60098.0,5e-07]
[1723983606055,1.23954941,60099.0,60098.0,5e-07]
[1723983608715,1.24054941,60099.0,60098.0,5e-07]
[1723983609828,1.24154941,60099.0,60098.0,5e-07]
[1723983610030,1.24454941,60099.0,60098.0,5e-07]
[1723983611221,1.56079741,60099.0,60098.0,5e-07]
[1723983611421,1.32784941,60099.0,60098.0,5e-07]
[1723983613009,1.31384941,60099.0,60098.0,5e-07]
[1723983613209,1.46382269,60099.0,60098.0,5e-07]
[1723983613452,1.32784941,60099.0,60098.0,5e-07]
[1723983613656,1.4211938,60099.0,60098.0,5e-07]
[1723983613886,1.31384941,60099.0,60098.0,5e-07]
[1723983614087,1.29984941,60099.0,60098.0,5e-07]
[1723983614294,1.32784941,60099.0,60098.0,5e-07]
[1723983614653,1.31384941,60099.0,60098.0,5e-07]
[1723983615434,1.32784941,60099.0,60098.0,5e-07]
[1723983616535,1.47780746,60099.0,60098.0,5e-07]
[1723983616740,1.32784941,60099.0,60098.0,5e-07]
[1723983617060,1.47780205,60099.0,60098.0,5e-07]
[1723983617299,1.32384941,60099.0,60098.0,5e-07]
[1723983617483,1.4737962,60099.0,60098.0,5e-07]
[1723983617684,1.32384941,60099.0,60098.0,5e-07]
[1723983618312,1.4737962,60099.0,60098.0,5e-07]
[1723983618660,1.32484941,60099.0,60098.0,5e-07]
[1723983618863,1.55879741,60099.0,60098.0,5e-07]
[1723983619176,1.55779741,60099.0,60098.0,5e-07]